fUSD/lending_fUSD_20250124
["ID","MTS","AMOUNT","RATE_DAILY","PERIOD"]
[350204632,1737688251414,-500.0,0.00018353,2]
[350204633,1737688251423,-500.0,0.00018353,2]
[350204634,1737688251432,-500.0,0.00018353,2]
[350204635,1737688251441,-500.0,0.00018353,2]
[350204636,1737688251450,-500.0,0.00018353,2]
[350204637,1737688251459,-500.0,0.00018353,2]
[350204638,1737688251468,-500.0,0.00018353,2]
[350204639,1737688251477,-500.0,0.00018353,2]
[350204640,1737688251487,-500.0,0.00018353,2]
[350204641,1737688251496,-500.0,0.00018353,2]
[350204642,1737688251505,-500.0,0.00018353,2]
[350204643,1737688251514,-500.0,0.00018353,2]
[350204644,1737688251523,-500.0,0.00018353,2]
[350204645,1737688251532,-500.0,0.00018353,2]
[350204646,1737688251542,-500.0,0.00018353,2]
[350204647,1737688251551,-532.43437824,0.00018353,2]
[350204648,1737688251559,-500.0,0.00018353,2]
[350204649,1737688251569,-500.0,0.00018353,2]
[350204650,1737688251578,-500.0,0.00018353,2]
[350204651,1737688251587,-500.0,0.00018353,2]
[350204652,1737688251596,-500.0,0.00018353,2]
[350204653,1737688251605,-500.0,0.00018353,2]
[350204654,1737688251615,-500.0,0.00018353,2]
[350204655,1737688251624,-500.0,0.00018353,2]
[350204656,1737688251634,-500.0,0.00018353,2]
[350204657,1737688251646,-500.0,0.00018353,2]
[350204658,1737688251655,-500.0,0.00018353,2]
[350204659,1737688251664,-500.0,0.00018353,2]
[350204660,1737688251674,-500.0,0.00018353,2]
[350204661,1737688251684,-500.0,0.00018353,2]
[350204662,1737688251694,-500.0,0.00018353,2]
[350204663,1737688251703,-500.0,0.00018353,2]
[350204664,1737688251713,-500.0,0.00018353,2]
[350204665,1737688251722,-500.0,0.00018353,2]
[350204666,1737688251731,-500.0,0.00018353,2]
[350204667,1737688251740,-500.0,0.00018353,2]
[350204668,1737688251750,-500.0,0.00018353,2]
[350204669,1737688251759,-500.0,0.00018353,2]
[350204670,1737688251769,-500.0,0.00018353,2]
[350204671,1737688251777,-500.0,0.00018353,2]
[350204672,1737688251787,-516.2,0.00018353,2]
[350204673,1737688251796,-500.0,0.00018353,2]
[350204674,1737688251805,-500.0,0.00018353,2]
[350204675,1737688251814,-500.0,0.00018353,2]
[350204676,1737688251823,-500.0,0.00018353,2]
[350204677,1737688251832,-500.0,0.00018353,2]
[350204678,1737688251841,-203.14,0.00018353,2]
[350204679,1737688251850,-500.0,0.00018353,2]
[350204680,1737688251859,-500.0,0.00018353,2]
[350204681,1737688251867,-500.0,0.00018353,2]
[350204682,1737688251876,-500.0,0.00018353,2]
[350204683,1737688251886,-500.0,0.00018353,2]
[350204684,1737688251897,-500.0,0.00018353,2]
[350204685,1737688251907,-500.0,0.00018353,2]
[350204686,1737688251916,-500.0,0.00018353,2]
[350204687,1737688251925,-500.0,0.00018353,2]
[350204688,1737688251934,-500.0,0.00018353,2]
[350204689,1737688251957,-500.0,0.00018353,2]
[350204690,1737688251966,-394.31140014,0.00018353,2]
[350204691,1737688251976,-500.0,0.00018353,2]
[350204692,1737688251984,-500.0,0.00018353,2]
[350204693,1737688251993,-500.0,0.00018353,2]
[350204694,1737688252002,-500.0,0.00018353,2]
[350204695,1737688252011,-500.0,0.00018353,2]
[350204696,1737688252020,-516.05,0.00018353,2]
[350204697,1737688252029,-500.0,0.00018353,2]
[350204698,1737688252038,-500.0,0.00018353,2]
[350204699,1737688252047,-500.0,0.00018353,2]
[350204700,1737688252056,-500.0,0.00018353,2]
[350204701,1737688252065,-500.0,0.00018353,2]
[350204702,1737688252075,-500.0,0.00018353,2]
[350204703,1737688252083,-500.0,0.00018353,2]
[350204704,1737688252092,-500.0,0.00018353,2]
[350204705,1737688252101,-500.0,0.00018353,2]
[350204706,1737688252110,-599.1,0.00018353,2]
[350204707,1737688252119,-500.0,0.00018353,2]
[350204708,1737688252128,-500.0,0.00018353,2]
[350204709,1737688252137,-500.0,0.00018353,2]
[350204710,1737688252146,-500.0,0.00018353,2]
[350204711,1737688252154,-556.07956595,0.00018354,2]
[350204712,1737688252163,-542.99182266,0.00018354,2]
[350204713,1737688252172,-514.91334463,0.00018354,2]
[350204714,1737688252181,-500.0,0.00018354,2]
[350204715,1737688252191,-500.0,0.00018354,2]
[350204716,1737688252200,-500.0,0.00018354,2]
[350204717,1737688252209,-500.0,0.00018354,2]
[350204718,1737688252218,-500.0,0.00018354,2]
[350204719,1737688252227,-500.0,0.00018354,2]
[350204720,1737688252236,-500.0,0.00018354,2]
[350204721,1737688252245,-500.0,0.00018354,2]
[350204722,1737688252254,-500.0,0.00018354,2]
[350204723,1737688252263,-513.66654818,0.00018354,2]
[350204724,1737688252272,-512.52884272,0.00018354,2]
[350204725,1737688252281,-500.0,0.00018354,2]
[350204726,1737688252290,-500.0,0.00018354,2]
[350204727,1737688252299,-500.0,0.00018354,2]
[350204728,1737688252307,-520.41133702,0.00018354,2]
[350204729,1737688252317,-500.0,0.00018354,2]
[350204730,1737688252329,-500.0,0.00018354,2]
[350204731,1737688252338,-500.0,0.00018354,2]
[350204732,1737688252349,-500.0,0.00018354,2]
[350204733,1737688252358,-500.0,0.00018354,2]
[350204734,1737688252367,-500.0,0.00018354,2]
[350204735,1737688252376,-500.0,0.00018354,2]
[350204736,1737688252385,-507.21540769,0.00018354,2]
[350204737,1737688252394,-500.0,0.00018354,2]
[350204738,1737688252403,-500.0,0.00018354,2]
[350204739,1737688252412,-500.0,0.00018354,2]
[350204740,1737688252422,-500.0,0.00018354,2]
[350204741,1737688252431,-500.0,0.00018354,2]
[350204742,1737688252440,-500.0,0.00018354,2]
[350204743,1737688252449,-500.0,0.00018354,2]
[350204744,1737688252457,-500.0,0.00018354,2]
[350204745,1737688252466,-521.582879,0.00018354,2]
[350204746,1737688252475,-500.0,0.00018354,2]
[350204747,1737688252484,-586.64823408,0.00018354,2]
[350204748,1737688252493,-328.17262511,0.00018354,2]
[350204749,1737688252502,-500.0,0.00018354,2]
[350204750,1737688252511,-314.86548254,0.00018354,2]
[350204751,1737688252520,-505.4006473,0.00018354,2]
[350204752,1737688252529,-500.0,0.00018354,2]
[350204753,1737688252538,-505.62135142,0.00018354,2]
[350204754,1737688252546,-503.44477332,0.00018354,2]
[350204755,1737688252555,-515.53273202,0.00018354,2]
[350204756,1737688252564,-173.07828074,0.00018354,2]
[350204757,1737688252573,-500.0,0.00018354,2]
[350204758,1737688252582,-500.0,0.00018354,2]
[350204759,1737688252591,-500.0,0.00018354,2]
[350204760,1737688252600,-500.0,0.00018354,2]
[350204761,1737688252609,-500.0,0.00018354,2]
[350204762,1737688252618,-500.0,0.00018354,2]
[350204763,1737688252626,-500.0,0.00018354,2]
[350204764,1737688252635,-500.0,0.00018354,2]
[350204765,1737688252644,-500.0,0.00018354,2]
[350204766,1737688252653,-500.0,0.00018354,2]
[350204767,1737688252662,-500.0,0.00018354,2]
[350204768,1737688252671,-397.17833028,0.00018354,2]
[350204769,1737688252680,-500.0,0.00018354,2]
[350204770,1737688252688,-500.0,0.00018354,2]
[350204771,1737688252697,-500.0,0.00018354,2]
[350204772,1737688252706,-500.0,0.00018354,2]
[350204773,1737688252716,-500.0,0.00018354,2]
[350204774,1737688252724,-500.0,0.00018354,2]
[350204775,1737688252734,-500.0,0.00018354,2]
[350204776,1737688252743,-500.0,0.00018354,2]
[350204777,1737688252752,-500.0,0.00018354,2]
[350204778,1737688252762,-500.0,0.00018354,2]
[350204779,1737688252771,-377.21449043,0.00018354,2]
[350204780,1737688252780,-500.0,0.00018354,2]
[350204781,1737688252789,-500.0,0.00018354,2]
[350204782,1737688252798,-500.0,0.00018354,2]
[350204783,1737688252807,-500.0,0.00018354,2]
[350204784,1737688252817,-500.0,0.00018354,2]
[350204785,1737688252826,-500.0,0.00018354,2]
[350204786,1737688252835,-500.0,0.00018354,2]
[350204787,1737688252844,-500.0,0.00018354,2]
[350204788,1737688252854,-500.0,0.00018354,2]
[350204789,1737688252863,-500.0,0.00018354,2]
[350204790,1737688252872,-500.0,0.00018354,2]
[350204791,1737688252881,-500.0,0.00018354,2]
[350204792,1737688252891,-500.0,0.00018354,2]
[350204793,1737688252902,-500.0,0.00018354,2]
[350204794,1737688252911,-500.0,0.00018354,2]
[350204795,1737688252920,-500.0,0.00018354,2]
[350204796,1737688252933,-500.0,0.00018354,2]
[350204797,1737688252951,-500.0,0.00018354,2]
[350204798,1737688252961,-645.96396611,0.00018354,2]
[350204799,1737688252970,-500.0,0.00018354,2]
[350204800,1737688252979,-500.0,0.00018354,2]
[350204801,1737688252989,-500.0,0.00018354,2]
[350204802,1737688252998,-500.0,0.00018354,2]
[350204803,1737688253008,-500.0,0.00018354,2]
[350204804,1737688253017,-500.0,0.00018354,2]
[350204805,1737688253026,-500.0,0.00018354,2]
[350204806,1737688253035,-1269.9,0.00018354,2]
[350204807,1737688253044,-1974.49,0.00018354,2]
[350204808,1737688253053,-500.0,0.00018354,2]
[350204809,1737688253063,-500.0,0.00018354,2]
[350204810,1737688253072,-600.35,0.00018354,2]
[350204811,1737688253081,-500.0,0.00018354,2]
[350204812,1737688253090,-500.0,0.00018354,2]
[350204813,1737688253100,-500.0,0.00018354,2]
[350204814,1737688253109,-500.0,0.00018354,2]
[350204815,1737688253118,-500.0,0.00018354,2]
[350204816,1737688253127,-542.23,0.00018354,2]
[350204817,1737688253136,-500.0,0.00018354,2]
[350204818,1737688253145,-500.0,0.00018354,2]
[350204819,1737688253154,-372.65,0.00018355,2]
[350204820,1737688253164,-8683.00362969,0.00018367,2]
[350204821,1737688253172,-500.0,0.00018373,2]
[350204822,1737688253182,-160.13830187,0.00018373,2]
[350204823,1737688253191,-500.74296015,0.00018373,2]
[350204824,1737688253200,-160.13828896,0.00018373,2]
[350204825,1737688253209,-568.74479691,0.00018452,2]
[350204826,1737688253219,-234.09545682,0.00018453,2]
[350204827,1737688253228,-500.0,0.00018474,2]
[350204828,1737688253238,-500.0,0.00018474,2]
[350204829,1737688253248,-500.0,0.00018474,2]
[350204830,1737688253257,-500.0,0.00018474,2]
[350204831,1737688253266,-500.0,0.00018474,2]
[350204832,1737688253275,-1070.32,0.00018474,2]
[350204833,1737688253284,-500.0,0.00018474,2]
[350204834,1737688253293,-500.0,0.00018474,2]
[350204835,1737688253302,-500.0,0.00018474,2]
[350204836,1737688253312,-710.49,0.00018474,2]
[350204837,1737688253323,-795.53,0.00018474,2]
[350204838,1737688253332,-500.0,0.00018474,2]
[350204839,1737688253341,-500.0,0.00018474,2]
[350204840,1737688253350,-500.0,0.00018474,2]
[350204841,1737688253360,-500.0,0.00018474,2]
[350204842,1737688253369,-1124.99,0.00018474,2]
[350204843,1737688253378,-749.76,0.00018474,2]
[350204844,1737688253387,-500.0,0.00018474,2]
[350204845,1737688253396,-500.0,0.00018474,2]
[350204846,1737688253407,-500.0,0.00018474,2]
[350204847,1737688253416,-732.75,0.00018474,2]
[350204848,1737688253426,-500.0,0.00018474,2]
[350204849,1737688253435,-500.0,0.00018474,2]
[350204850,1737688253445,-500.0,0.00018474,2]
[350204851,1737688253454,-500.0,0.00018474,2]
[350204852,1737688253464,-500.0,0.00018474,2]
[350204853,1737688253473,-500.0,0.00018474,2]
[350204854,1737688253482,-416.017879,0.00018474,2]
[350204855,1737688253491,-500.0,0.00018474,2]
[350204856,1737688253500,-500.0,0.00018474,2]
[350204857,1737688253509,-707.08,0.00018474,2]
[350204858,1737688253518,-500.0,0.00018474,2]
[350204859,1737688253528,-500.0,0.00018474,2]
[350204860,1737688253537,-500.0,0.00018474,2]
[350204861,1737688253546,-950.55,0.00018474,2]
[350204862,1737688253556,-500.0,0.00018474,2]
[350204863,1737688253565,-500.0,0.00018474,2]
[350204864,1737688253574,-500.0,0.00018474,2]
[350204865,1737688253583,-500.0,0.00018474,2]
[350204866,1737688253593,-336.19953323,0.000185,2]
[350204867,1737688253602,-336.19953323,0.00018512,2]
[350204868,1737688253612,-131870.92635125,0.00018518,2]
[350204869,1737688253621,-151.0,0.00018518,2]
[350204870,1737688253630,-192.625,0.00018518,2]
[350204871,1737688253638,-151.0,0.00018518,2]
[350204872,1737688253648,-151.0,0.00018518,2]
[350204873,1737688253657,-151.0,0.00018518,2]
[350204874,1737688253666,-151.0,0.00018518,2]
[350204875,1737688253675,-458.86797,0.00018518,2]
[350204876,1737688253684,-458.86797,0.00018518,2]
[350204877,1737688253694,-150.0,0.0001852,2]
[350204878,1737688253703,-150.0,0.0001852,2]
[350204879,1737688253713,-150.0,0.00018522,2]
[350204880,1737688253721,-150.0,0.00018527,2]
[350204881,1737688253730,-150.0,0.00018527,2]
[350204882,1737688253739,-150.0,0.00018529,2]
[350204883,1737688253749,-150.0,0.0001853,2]
[350204884,1737688253758,-150.0,0.0001853,2]
[350204885,1737688253767,-150.0,0.00018531,2]
[350204886,1737688253777,-150.0,0.00018532,2]
[350204887,1737688253786,-150.0,0.00018536,2]
[350204888,1737688253919,-150.0,0.00018537,2]
[350204889,1737688253929,-150.0,0.00018538,2]
[350204890,1737688253938,-150.0,0.00018541,2]
[350204891,1737688253946,-1000.0,0.00018541,2]
[350204892,1737688253955,-150.0,0.00018542,2]
[350204893,1737688253964,-150.0,0.00018543,2]
[350204894,1737688253974,-150.0,0.00018543,2]
[350204895,1737688253982,-150.0,0.00018545,2]
[350204896,1737688253991,-1000.0,0.00018545,2]
[350204897,1737688254000,-200.0,0.00018552,2]
[350204898,1737688254009,-150.0,0.00018555,2]
[350204899,1737688254018,-150.0,0.00018556,2]
[350204900,1737688254027,-150.0,0.00018558,2]
[350204901,1737688254037,-150.0,0.00018558,2]
[350204902,1737688254046,-137655.4045007,0.00018559,2]
[350204903,1737688254055,-150.0,0.00018559,2]
[350204904,1737688254067,-150.0,0.00018559,2]
[350204905,1737688254079,-475.81468202,0.0001856,2]
[350204906,1737688254089,-336.19953323,0.00018561,2]
[350204907,1737688254098,-150.0,0.00018561,2]
[350204908,1737688254108,-150.0,0.00018563,2]
[350204909,1737688254119,-1000.0,0.00018564,2]
[350204910,1737688254129,-200.0,0.00018565,2]
[350204911,1737688254138,-150.0,0.00018566,2]
[350204912,1737688254147,-150.0,0.00018568,2]
[350204913,1737688254156,-1000.0,0.00018568,2]
[350204914,1737688254165,-1689.08744859,0.0001857,2]
[350204915,1737688254177,-1000.0,0.0001857,2]
[350204916,1737688254186,-8683.00362969,0.00018574,2]
[350204917,1737688254195,-472.24351746,0.00018574,2]
[350204918,1737688254204,-150.0,0.00018574,2]
[350204919,1737688254214,-137655.4045007,0.00018576,2]
[350204920,1737688254223,-150.0,0.00018578,2]
[350204921,1737688254231,-150.0,0.0001858,2]
[350204922,1737688254240,-150.0,0.00018584,2]
[350204923,1737688254249,-150.0,0.00018585,2]
[350204924,1737688254258,-150.0,0.00018586,2]
[350204925,1737688254267,-150.0,0.00018587,2]
[350204926,1737688254276,-1000.0,0.00018589,2]
[350204927,1737688254286,-150.0,0.00018589,2]
[350204928,1737688254296,-568.74479691,0.0001859,2]
[350204929,1737688254305,-137655.4045007,0.00018591,2]
[350204930,1737688254314,-475.81468202,0.00018591,2]
[350204931,1737688254327,-174.26958964,0.00018595,2]
[350204932,1737688254336,-472.24351746,0.00018596,2]
[350204933,1737688254345,-137655.4045007,0.00018597,2]
[350204934,1737688254354,-1000.0,0.000186,2]
[350204935,1737688254363,-150.0,0.00018604,2]
[350204936,1737688254372,-1000.0,0.00018606,2]
[350204937,1737688254382,-336.19953323,0.00018609,2]
[350204938,1737688254393,-234.09545682,0.00018611,2]
[350204939,1737688254402,-150.0,0.00018611,2]
[350204940,1737688254411,-150.0,0.00018615,2]
[350204941,1737688254422,-150.0,0.0001862,2]
[350204942,1737688254431,-250000.0,0.0001862,2]
[350204943,1737688254440,-151.0,0.0001862,2]
[350204944,1737688254450,-151.0,0.0001862,2]
[350204945,1737688254459,-151.0,0.0001862,2]
[350204946,1737688254468,-151.0,0.0001862,2]
[350204947,1737688254478,-151.0,0.0001862,2]
[350204948,1737688254486,-458.86797,0.0001862,2]
[350204949,1737688254495,-458.86797,0.0001862,2]
[350204950,1737688254504,-150.0,0.00018621,2]
[350204951,1737688254514,-150.0,0.00018623,2]
[350204952,1737688254522,-1000.0,0.00018625,2]
[350204953,1737688254532,-500.0,0.00018626,2]
[350204954,1737688254541,-500.0,0.00018626,2]
[350204955,1737688254550,-644.67,0.00018626,2]
[350204956,1737688254559,-1109.59,0.00018626,2]
[350204957,1737688254568,-805.84,0.00018626,2]
[350204958,1737688254577,-500.0,0.00018626,2]
[350204959,1737688254586,-500.0,0.00018626,2]
[350204960,1737688254596,-990.45,0.00018626,2]
[350204961,1737688254606,-1432.21,0.00018626,2]
[350204962,1737688254615,-1033.96,0.00018626,2]
[350204963,1737688254624,-150.0,0.00018626,2]
[350204964,1737688254634,-500.0,0.00018626,2]
[350204965,1737688254643,-500.0,0.00018626,2]
[350204966,1737688254651,-1074.99,0.00018626,2]
[350204967,1737688254661,-500.0,0.00018626,2]
[350204968,1737688254670,-634.28,0.00018626,2]
[350204969,1737688254679,-151.0,0.00018626,2]
[350204970,1737688254688,-500.0,0.00018626,2]
[350204971,1737688254698,-500.0,0.00018626,2]
[350204972,1737688254707,-500.0,0.00018626,2]
[350204973,1737688254717,-500.0,0.00018626,2]
[350204974,1737688254726,-167.300744,0.00018626,2]
[350204975,1737688254735,-500.0,0.00018626,2]
[350204976,1737688254744,-151.0,0.00018626,2]
[350204977,1737688254753,-167.300744,0.00018626,2]
[350204978,1737688254762,-151.0,0.00018626,2]
[350204979,1737688254771,-740.44,0.00018626,2]
[350204980,1737688254781,-500.0,0.00018626,2]
[350204981,1737688254790,-151.0,0.00018626,2]
[350204982,1737688254799,-151.0,0.00018626,2]
[350204983,1737688254808,-604.34,0.00018626,2]
[350204984,1737688254817,-259.3296,0.00018626,2]
[350204985,1737688254826,-285.175744,0.00018626,2]
[350204986,1737688254835,-259.3296,0.00018626,2]
[350204987,1737688254844,-764.8,0.00018626,2]
[350204988,1737688254853,-500.0,0.00018626,2]
[350204989,1737688254863,-151.0,0.00018626,2]
[350204990,1737688254872,-959.6,0.00018626,2]
[350204991,1737688254881,-363.263715,0.00018626,2]
[350204992,1737688254890,-363.263715,0.00018626,2]
[350204993,1737688254899,-500.0,0.00018626,2]
[350204994,1737688254908,-1345.49,0.00018626,2]
[350204995,1737688254917,-895.76,0.00018626,2]
[350204996,1737688254927,-500.0,0.00018626,2]
[350204997,1737688254936,-500.0,0.00018626,2]
[350204998,1737688254945,-500.0,0.00018626,2]
[350204999,1737688254953,-877.77,0.00018626,2]
[350205000,1737688254963,-1107.33,0.00018626,2]
[350205001,1737688254972,-500.0,0.00018626,2]
[350205002,1737688254980,-500.0,0.00018626,2]
[350205003,1737688254989,-500.0,0.00018627,2]
[350205004,1737688254998,-500.0,0.00018627,2]
[350205005,1737688255007,-500.0,0.00018627,2]
[350205006,1737688255016,-256.89,0.00018627,2]
[350205007,1737688255025,-500.0,0.00018627,2]
[350205008,1737688255035,-500.0,0.00018627,2]
[350205009,1737688255044,-185.09126082,0.00018627,2]
[350205010,1737688255053,-205.3,0.00018627,2]
[350205011,1737688255062,-500.0,0.00018627,2]
[350205012,1737688255071,-576.43,0.00018627,2]
[350205013,1737688255080,-246.0,0.00018627,2]
[350205014,1737688255089,-500.0,0.00018627,2]
[350205015,1737688255098,-500.0,0.00018627,2]
[350205016,1737688255107,-294.15341562,0.00018627,2]
[350205017,1737688255117,-518.64785707,0.00018627,2]
[350205018,1737688255126,-354.52446001,0.00018627,2]
[350205019,1737688255137,-500.0,0.00018627,2]
[350205020,1737688255147,-500.0,0.00018627,2]
[350205021,1737688255156,-500.0,0.00018627,2]
[350205022,1737688255165,-500.0,0.00018627,2]
[350205023,1737688255174,-500.0,0.00018627,2]
[350205024,1737688255183,-500.0,0.00018627,2]
[350205025,1737688255192,-607.95,0.00018627,2]
[350205026,1737688255201,-618.13228231,0.00018627,2]
[350205027,1737688255210,-500.0,0.00018627,2]
[350205028,1737688255219,-500.0,0.00018627,2]
[350205029,1737688255228,-500.0,0.00018627,2]
[350205030,1737688255237,-500.0,0.00018627,2]
[350205031,1737688255246,-500.0,0.00018627,2]
[350205032,1737688255255,-500.0,0.00018627,2]
[350205033,1737688255264,-158.11,0.00018627,2]
[350205034,1737688255273,-500.0,0.00018627,2]
[350205035,1737688255282,-500.0,0.00018627,2]
[350205036,1737688255291,-500.0,0.00018627,2]
[350205037,1737688255301,-500.0,0.00018627,2]
[350205038,1737688255310,-500.0,0.00018627,2]
[350205039,1737688255320,-500.0,0.00018627,2]
[350205040,1737688255332,-500.0,0.00018627,2]
[350205041,1737688255341,-500.0,0.00018627,2]
[350205042,1737688255351,-500.0,0.00018627,2]
[350205043,1737688255360,-500.0,0.00018627,2]
[350205044,1737688255371,-500.0,0.00018627,2]
[350205045,1737688255382,-346.57491651,0.00018627,2]
[350205046,1737688255392,-500.0,0.00018627,2]
[350205047,1737688255402,-500.0,0.00018627,2]
[350205048,1737688255411,-500.0,0.00018627,2]
[350205049,1737688255421,-500.0,0.00018627,2]
[350205050,1737688255432,-500.0,0.00018627,2]
[350205051,1737688255442,-588.12,0.00018627,2]
[350205052,1737688255452,-500.0,0.00018627,2]
[350205053,1737688255462,-500.0,0.00018627,2]
[350205054,1737688255472,-500.0,0.00018627,2]
[350205055,1737688255482,-500.0,0.00018627,2]
[350205056,1737688255492,-627.98,0.00018627,2]
[350205057,1737688255502,-500.0,0.00018627,2]
[350205058,1737688255511,-500.0,0.00018627,2]
[350205059,1737688255521,-500.0,0.00018627,2]
[350205060,1737688255530,-500.0,0.00018627,2]
[350205061,1737688255540,-500.0,0.00018627,2]
[350205062,1737688255550,-500.0,0.00018627,2]
[350205063,1737688255559,-500.0,0.00018627,2]
[350205064,1737688255569,-500.0,0.00018627,2]
[350205065,1737688255578,-500.0,0.00018627,2]
[350205066,1737688255588,-500.0,0.00018627,2]
[350205067,1737688255597,-500.0,0.00018627,2]
[350205068,1737688255607,-500.0,0.00018627,2]
[350205069,1737688255616,-500.0,0.00018627,2]
[350205070,1737688255626,-574.34,0.00018627,2]
[350205071,1737688255635,-236.22,0.00018627,2]
[350205072,1737688255645,-500.0,0.00018627,2]
[350205073,1737688255655,-500.0,0.00018627,2]
[350205074,1737688255664,-507.77,0.00018627,2]
[350205075,1737688255674,-294.83,0.00018627,2]
[350205076,1737688255687,-229.24,0.00018627,2]
[350205077,1737688255700,-500.0,0.00018627,2]
[350205078,1737688255711,-500.0,0.00018627,2]
[350205079,1737688255722,-627.42,0.00018627,2]
[350205080,1737688255732,-500.0,0.00018627,2]
[350205081,1737688255742,-556.69,0.00018627,2]
[350205082,1737688255752,-540.06,0.00018627,2]
[350205083,1737688255762,-500.0,0.00018627,2]
[350205084,1737688255771,-500.0,0.00018627,2]
[350205085,1737688255781,-489.90694924,0.00018627,2]
[350205086,1737688255791,-500.0,0.00018627,2]
[350205087,1737688255801,-325.94,0.00018627,2]
[350205088,1737688255810,-496.57,0.00018627,2]
[350205089,1737688255819,-173.41,0.00018628,2]
[350205090,1737688255829,-200.0,0.00018628,2]
[350205091,1737688255838,-527.51588174,0.00018628,2]
[350205092,1737688255848,-500.0,0.00018628,2]
[350205093,1737688255857,-500.0,0.00018628,2]
[350205094,1737688255866,-500.0,0.00018628,2]
[350205095,1737688255875,-619.56248171,0.00018628,2]
[350205096,1737688255884,-500.0,0.00018628,2]
[350205097,1737688255893,-500.0,0.00018628,2]
[350205098,1737688255903,-500.0,0.00018628,2]
[350205099,1737688255912,-500.0,0.00018628,2]
[350205100,1737688255921,-500.0,0.00018628,2]
[350205101,1737688255930,-500.0,0.00018628,2]
[350205102,1737688255939,-500.0,0.00018628,2]
[350205103,1737688255948,-500.0,0.00018628,2]
[350205104,1737688255957,-500.0,0.00018628,2]
[350205105,1737688255966,-500.0,0.00018628,2]
[350205106,1737688255975,-443.12787362,0.00018628,2]
[350205107,1737688255985,-500.0,0.00018628,2]
[350205108,1737688255994,-500.0,0.00018628,2]
[350205109,1737688256003,-500.0,0.00018628,2]
[350205110,1737688256012,-500.0,0.00018628,2]
[350205111,1737688256022,-500.0,0.00018628,2]
[350205112,1737688256031,-643.76,0.00018628,2]
[350205113,1737688256040,-500.0,0.00018628,2]
[350205114,1737688256049,-3000.0,0.00018628,2]
[350205115,1737688256058,-555.35,0.00018628,2]
[350205116,1737688256067,-500.0,0.00018628,2]
[350205117,1737688256076,-500.0,0.00018628,2]
[350205118,1737688256085,-500.0,0.00018628,2]
[350205119,1737688256095,-500.0,0.00018628,2]
[350205120,1737688256105,-239.57,0.00018628,2]
[350205121,1737688256115,-500.0,0.00018628,2]
[350205122,1737688256125,-500.0,0.00018628,2]
[350205123,1737688256134,-500.0,0.00018628,2]
[350205124,1737688256143,-585.03,0.00018628,2]
[350205125,1737688256153,-1269.9,0.00018628,2]
[350205126,1737688256162,-1974.49,0.00018628,2]
[350205127,1737688256171,-500.0,0.00018628,2]
[350205128,1737688256181,-500.0,0.00018628,2]
[350205129,1737688256190,-600.35,0.00018628,2]
[350205130,1737688256199,-500.0,0.00018628,2]
[350205131,1737688256208,-500.0,0.00018628,2]